bitfinex/quotes_SOLUSD_20250704
["timestamp","ask_amount","ask_price","bid_price","bid_amount"]
[1751667832114,3.84032346,147.81,147.77,10.6074574]
[1751667832417,8.91540365,147.81,147.77,10.6074574]
[1751667832607,3.84032346,147.81,147.77,10.6074574]
[1751667832809,8.91540365,147.81,147.77,10.6074574]
[1751667833142,8.91540365,147.82,147.78,3.84032346]
[1751667833344,5.07508019,147.81,147.78,3.84032346]
[1751667834229,3.84032346,147.82,147.79,6.76635766]
[1751667834430,5.07449846,147.81,147.79,6.76635766]
[1751667834728,3.84032346,147.82,147.79,6.76635766]
[1751667834927,5.07438662,147.81,147.79,6.76635766]
[1751667835110,3.84032346,147.82,147.79,6.76635766]
[1751667835308,5.07438662,147.81,147.79,6.76635766]
[1751667835535,3.84032346,147.82,147.79,6.76635766]
[1751667835726,5.07428021,147.81,147.79,6.76635766]
[1751667836030,3.84032346,147.82,147.79,6.76635766]
[1751667836209,5.07428021,147.81,147.79,6.76635766]
[1751667836527,6.1387,147.83,147.79,6.76635766]
[1751667836825,5.07418022,147.82,147.79,6.76635766]
[1751667837006,5.07418022,147.81,147.79,6.76635766]
[1751667837207,9.97902346,147.83,147.79,6.76635766]
[1751667837507,5.07418022,147.82,147.79,6.76635766]
[1751667837709,5.07418022,147.81,147.79,6.76635766]
[1751667838036,9.97902346,147.83,147.79,6.76635766]
[1751667838220,5.07409389,147.82,147.79,6.76635766]
[1751667838412,5.07409389,147.81,147.79,6.76635766]
[1751667838615,6.1387,147.83,147.79,6.76635766]
[1751667838815,5.07401474,147.82,147.79,6.76635766]
[1751667839111,5.07401474,147.81,147.79,6.76635766]
[1751667839318,9.97902346,147.83,147.79,6.76635766]
[1751667839524,5.07394029,147.82,147.79,6.76635766]
[1751667839738,5.07394029,147.81,147.79,6.76635766]
[1751667839917,5.07394029,147.82,147.79,6.76635766]
[1751667840120,5.07394029,147.81,147.79,6.76635766]
[1751667840317,5.07394029,147.82,147.79,6.76635766]
[1751667840546,5.07394029,147.81,147.79,6.76635766]
[1751667844150,3.84032346,147.82,147.79,6.76635766]
[1751667844453,5.07392017,147.81,147.79,6.76635766]
[1751667845452,3.84032346,147.82,147.79,6.76635766]
[1751667845757,5.07411046,147.81,147.79,6.76635766]
[1751667846354,3.84032346,147.82,147.79,6.76635766]
[1751667846661,5.07417091,147.81,147.77,6.76727346]
[1751667846852,5.07417091,147.81,147.78,3.84032346]
[1751667847350,5.07425387,147.81,147.78,3.84032346]
[1751667847525,5.07424057,147.81,147.78,3.84032346]
[1751667850662,5.07424057,147.81,147.79,6.76635766]
[1751667850958,8.91456403,147.83,147.79,6.76635766]
[1751667851163,5.07424057,147.82,147.79,6.76635766]
[1751667851348,5.07424057,147.81,147.79,6.76635766]
[1751667851659,5.07424057,147.82,147.79,6.76635766]
[1751667851855,5.07424057,147.82,147.78,3.84032346]
[1751667851856,5.07424057,147.81,147.78,3.84032346]
[1751667852061,3.84032346,147.82,147.78,3.84032346]
[1751667852362,5.07491458,147.81,147.78,3.84032346]
[1751667852575,3.84032346,147.82,147.78,3.84032346]
[1751667852738,5.07522884,147.81,147.78,3.84032346]
[1751667852938,3.84032346,147.82,147.79,6.76635766]
[1751667853261,5.07522743,147.81,147.79,6.76635766]
[1751667853439,3.84032346,147.82,147.79,6.76635766]
[1751667853642,5.07557922,147.81,147.79,6.76635766]
[1751667853961,3.84032346,147.82,147.79,6.76635766]
[1751667854142,5.0755778,147.81,147.79,6.76635766]
[1751667854343,3.84032346,147.82,147.79,6.76635766]
[1751667854546,5.07595926,147.81,147.79,6.76635766]
[1751667854746,3.84032346,147.82,147.79,6.76635766]
[1751667854954,5.07595785,147.81,147.79,6.76635766]
[1751667855163,3.84032346,147.82,147.79,6.76635766]
[1751667855361,5.0760229,147.81,147.77,6.76727346]
[1751667855542,3.84032346,147.82,147.78,3.84032346]
[1751667855842,5.07637341,147.81,147.78,3.84032346]
[1751667856041,3.84032346,147.82,147.78,3.84032346]
[1751667856241,5.07643167,147.81,147.78,3.84032346]
[1751667856442,3.84032346,147.82,147.79,6.76635766]
[1751667857360,135.14612834,147.86,147.77,6.76727346]
[1751667857361,8.9170253,147.81,147.77,6.76727346]
[1751667857565,3.84032346,147.81,147.77,6.76727346]
[1751667857769,3.84032346,147.8,147.77,6.76727346]
[1751667863666,3.84032346,147.81,147.77,10.60759692]
[1751667865482,5.07827462,147.8,147.77,10.60759692]
[1751667865663,3.84032346,147.8,147.77,6.76727346]
[1751667866167,3.84032346,147.81,147.77,10.60759692]
[1751667866470,5.07810987,147.8,147.77,10.60759692]
[1751667866669,3.84032346,147.81,147.77,10.60759692]
[1751667866978,5.07809968,147.8,147.77,10.60759692]
[1751667867285,3.84032346,147.81,147.77,10.60759692]
[1751667867468,5.07791428,147.8,147.77,10.60759692]
[1751667867663,3.84032346,147.81,147.77,10.60759692]
[1751667867880,5.07787635,147.8,147.77,10.60759692]
[1751667868071,3.84032346,147.81,147.77,10.60759692]
[1751667868271,5.07781027,147.8,147.77,10.60759692]
[1751667868576,3.84032346,147.81,147.77,10.60759692]
[1751667868777,5.07785185,147.8,147.77,10.60759692]
[1751667869086,3.84032346,147.81,147.77,10.60759692]
[1751667869388,5.07778728,147.8,147.77,10.60759692]
[1751667869589,3.84032346,147.81,147.77,10.60759692]
[1751667869769,5.07782552,147.8,147.77,10.60759692]
[1751667870092,3.84032346,147.81,147.77,10.60759692]
[1751667870291,5.07775963,147.8,147.77,6.76727346]
[1751667870586,3.84032346,147.81,147.77,10.60759692]
[1751667870787,5.07779635,147.8,147.77,10.60759692]
[1751667871091,3.84032346,147.81,147.77,10.60759692]
[1751667871276,5.07773366,147.8,147.77,10.60759692]
[1751667871477,3.84032346,147.81,147.77,10.60759692]
[1751667871677,5.07776749,147.8,147.77,10.60759692]
[1751667871883,3.84032346,147.81,147.77,10.60759692]
[1751667872063,5.07776749,147.8,147.77,10.60759692]
[1751667872267,3.84032346,147.81,147.77,10.60759692]
[1751667872467,5.07766436,147.8,147.77,10.60759692]
[1751667872667,3.84032346,147.81,147.77,10.60759692]
[1751667878906,5.07715222,147.8,147.77,10.60759692]
[1751667879197,3.84032346,147.81,147.77,10.60759692]
[1751667879388,5.07713234,147.8,147.77,10.60759692]
[1751667879591,3.84032346,147.81,147.77,10.60759692]
[1751667879815,5.07707918,147.8,147.77,10.60759692]
[1751667880096,3.84032346,147.81,147.77,10.60759692]
[1751667880296,5.07706577,147.8,147.77,6.76727346]
[1751667880498,3.84032346,147.81,147.77,6.76727346]
[1751667880700,5.07701193,147.8,147.77,6.76727346]
[1751667880893,3.84032346,147.81,147.77,6.76727346]
[1751667881190,5.07701193,147.8,147.77,6.76727346]
[1751667881390,3.84032346,147.81,147.77,6.76727346]
[1751667881607,5.07694964,147.8,147.77,6.76727346]
[1751667881786,3.84032346,147.81,147.77,6.76727346]
[1751667882085,5.07694822,147.8,147.77,6.76727346]
[1751667882288,3.84032346,147.81,147.77,6.76727346]
[1751667882488,5.07694327,147.8,147.77,6.76727346]
[1751667882785,3.84032346,147.81,147.77,6.76727346]
[1751667882992,5.07688765,147.8,147.77,6.76727346]
[1751667883176,3.84032346,147.81,147.77,6.76727346]
[1751667883510,5.07682775,147.8,147.77,6.76727346]
[1751667883701,3.84032346,147.81,147.77,6.76727346]
[1751667884004,5.07676948,147.8,147.77,6.76727346]
[1751667884297,3.84032346,147.81,147.77,6.76727346]
[1751667884505,5.07655974,147.8,147.77,6.76727346]
[1751667884704,3.84032346,147.81,147.77,6.76727346]
[1751667885007,5.07656116,147.8,147.77,6.76727346]
[1751667885193,3.84032346,147.81,147.77,6.76727346]
[1751667885395,5.07642963,147.8,147.77,6.76727346]
[1751667885613,3.84032346,147.81,147.77,6.76727346]
[1751667885778,5.07643104,147.8,147.77,6.76727346]
[1751667885984,3.84032346,147.81,147.77,6.76727346]
[1751667886196,5.07642963,147.8,147.77,6.76727346]
[1751667886404,3.84032346,147.81,147.77,6.76727346]
[1751667886606,5.07631823,147.8,147.77,6.76727346]
[1751667886806,3.84032346,147.81,147.77,6.76727346]
[1751667886992,5.07631964,147.8,147.77,6.76727346]
[1751667887190,3.84032346,147.81,147.77,6.76727346]
[1751667887412,5.07622583,147.8,147.77,6.76727346]
[1751667887586,3.84032346,147.81,147.77,6.76727346]
[1751667887791,5.07622583,147.8,147.77,6.76727346]
[1751667888092,3.84032346,147.81,147.77,6.76727346]
[1751667888295,5.07615385,147.8,147.77,6.76727346]
[1751667888589,3.84032346,147.81,147.77,6.76727346]
[1751667888891,5.07615385,147.8,147.77,6.76727346]
[1751667889090,3.84032346,147.81,147.77,6.76727346]
[1751667889292,5.07616125,147.8,147.77,6.76727346]
[1751667889512,3.84032346,147.81,147.77,6.76727346]
[1751667889687,5.07616125,147.8,147.77,6.76727346]
[1751667889887,3.84032346,147.81,147.77,6.76727346]
[1751667890094,5.07605176,147.8,147.77,6.76727346]
[1751667890297,3.84032346,147.81,147.77,6.76727346]
[1751667890503,5.07612492,147.8,147.77,6.76727346]
[1751667890704,3.84032346,147.81,147.77,6.76727346]
[1751667890913,5.07612492,147.8,147.77,6.76727346]
[1751667891211,3.84032346,147.81,147.77,6.76727346]
[1751667891516,5.0762082,147.8,147.77,6.76727346]
[1751667891693,3.84032346,147.81,147.77,6.76727346]
[1751667892018,5.0762082,147.8,147.77,6.76727346]
[1751667892209,3.84032346,147.81,147.77,6.76727346]
[1751667892387,5.07629947,147.8,147.77,6.76727346]
[1751667892588,7.8868,147.82,147.77,6.76727346]
[1751667892820,8.91662151,147.81,147.77,6.76727346]
[1751667893013,5.07629805,147.8,147.77,6.76727346]
[1751667893321,3.84032346,147.81,147.77,6.76727346]
[1751667893501,5.07639979,147.8,147.77,6.76727346]
[1751667893706,3.84032346,147.81,147.77,6.76727346]
[1751667894018,5.07639979,147.8,147.77,6.76727346]
[1751667894316,3.84032346,147.81,147.77,6.76727346]
[1751667894517,5.07651212,147.8,147.77,6.76727346]
[1751667894724,3.84032346,147.81,147.77,6.76727346]
[1751667894896,5.07651346,147.8,147.77,6.76727346]
[1751667895194,3.84032346,147.81,147.77,6.76727346]
[1751667895393,5.07663629,147.8,147.77,6.76727346]
[1751667895638,3.84032346,147.81,147.77,6.76727346]
[1751667895797,5.07663488,147.8,147.77,6.76727346]
[1751667896092,3.84032346,147.81,147.77,6.76727346]
[1751667896294,5.07677789,147.8,147.77,6.76727346]
[1751667896502,3.84032346,147.81,147.77,6.76727346]
[1751667896813,5.0767793,147.8,147.77,6.76727346]
[1751667897016,3.84032346,147.81,147.77,6.76727346]
[1751667897200,5.0768279,147.8,147.77,6.76727346]
[1751667897403,3.84032346,147.81,147.77,6.76727346]
[1751667897612,5.07693167,147.8,147.77,6.76727346]
[1751667897908,3.84032346,147.81,147.77,6.76727346]
[1751667898108,5.07693167,147.8,147.77,6.76727346]
[1751667898310,3.84032346,147.81,147.77,6.76727346]
[1751667898608,5.07710192,147.8,147.77,6.76727346]
[1751667898806,3.84032346,147.81,147.77,6.76727346]
[1751667899010,5.07710051,147.8,147.77,6.76727346]
[1751667899308,3.84032346,147.81,147.77,6.76727346]
[1751667899526,5.07728774,147.8,147.77,6.76727346]
[1751667899728,3.84032346,147.81,147.77,6.76727346]
[1751667899926,5.07728774,147.8,147.77,6.76727346]
[1751667900106,3.84032346,147.81,147.77,6.76727346]
[1751667900310,5.07744401,147.8,147.77,6.76727346]
[1751667900510,3.84032346,147.81,147.77,6.76727346]
[1751667900739,5.07744401,147.8,147.77,6.76727346]
[1751667900939,3.84032346,147.78,147.73,0.2]
[1751667901239,3.84032346,147.74,147.73,0.2]
[1751667902023,11.84212198,147.77,147.73,0.2]
[1751667902227,3.84032346,147.74,147.73,0.2]
[1751667904932,10.60897108,147.74,147.73,0.2]
[1751667907041,60.32659182,147.74,147.73,0.2]
[1751667910827,24.90904886,147.73,147.71,0.2]
[1751667911024,17.98779534,147.72,147.71,0.2]
[1751667911335,31.56947232,147.72,147.71,0.2]
[1751667911560,32.777927,147.72,147.71,0.2]
[1751667911852,31.56947232,147.72,147.71,0.2]
[1751667913343,1.6595,147.72,147.71,0.2]
[1751667913563,3.84032346,147.72,147.71,0.2]
[1751667917040,102.48881033,147.74,147.71,0.2]
[1751667917344,3.84032346,147.72,147.71,0.2]
[1751667922747,102.4886564,147.74,147.71,0.2]
[1751667922950,3.84032346,147.72,147.71,0.2]
[1751667925972,102.4886564,147.74,147.71,0.2]
[1751667926346,95.72,147.74,147.71,0.2]
[1751667926545,3.84032346,147.72,147.71,0.2]
[1751667930978,10.6098875,147.72,147.71,0.2]
[1751667931163,3.84032346,147.72,147.71,0.2]
[1751667931966,29.25953636,147.72,147.71,0.2]
[1751667932172,35.34883636,147.72,147.71,0.2]
[1751667933571,61.34883636,147.72,147.71,0.2]
[1751667934765,96.42883636,147.72,147.71,0.2]
[1751667936074,103.82883636,147.72,147.71,0.2]
[1751667937081,99.9885129,147.72,147.71,0.2]
[1751667937384,103.82883636,147.72,147.71,0.2]
[1751667937901,61.34883636,147.72,147.71,0.2]
[1751667938098,68.74883636,147.72,147.71,0.2]
[1751667940270,37.24032346,147.72,147.71,0.2]
[1751667942198,42.29761596,147.72,147.71,0.2]
[1751667943092,42.30144398,147.72,147.71,0.2]
[1751667947084,38.46112052,147.72,147.71,0.2]
[1751667947284,42.30144398,147.72,147.71,0.2]
[1751667949609,49.07100802,147.72,147.71,0.2]
[1751667950694,84.13100802,147.72,147.71,0.2]
[1751667952610,5.06112052,147.72,147.71,0.2]
[1751667952790,8.90144398,147.72,147.71,0.2]
[1751667953184,5.06112052,147.72,147.71,0.2]
[1751667954500,7.38,147.74,147.71,10.8103458]
[1751667954687,7.38,147.74,147.73,10.60942926]
[1751667955605,7.38,147.74,147.73,3.84032346]
[1751667956686,7.38,147.74,147.73,10.60942926]
[1751667957087,5.07351669,147.77,147.73,10.60942926]
[1751667957287,5.17351669,147.78,147.75,3.84032346]
[1751667957698,5.07351669,147.77,147.75,3.84032346]
[1751667958013,5.07351669,147.76,147.75,6.0034864]
[1751667958893,5.07351669,147.76,147.74,12.77175748]
[1751667959102,5.07351669,147.75,147.74,12.77175748]
[1751667959301,5.07351669,147.77,147.74,12.77175748]
[1751667959498,5.07351669,147.76,147.74,12.77175748]
[1751667959818,5.07351669,147.75,147.74,12.77175748]
[1751667960000,5.07351669,147.77,147.74,12.77175748]
[1751667960201,5.07351669,147.76,147.74,12.77175748]
[1751667960392,5.07351669,147.75,147.74,12.77175748]
[1751667960599,11.17700309,147.78,147.74,6.76827108]
[1751667960912,6.1034864,147.78,147.74,6.76827108]
[1751667961098,11.17700309,147.78,147.74,12.77175748]
[1751667961415,0.1,147.78,147.74,12.77175748]
[1751667961613,5.17351669,147.78,147.74,12.77175748]
[1751667962212,6.1034864,147.78,147.74,12.77175748]
[1751667962714,0.1,147.78,147.74,12.77175748]
[1751667963013,6.1034864,147.78,147.74,12.77175748]
[1751667963416,6.1034864,147.78,147.74,6.0034864]
[1751667965302,6.1034864,147.78,147.75,6.7681895]
[1751667967507,6.1034864,147.78,147.74,6.0034864]
[1751667967702,0.1,147.78,147.74,6.0034864]
[1751667967908,6.1034864,147.78,147.74,6.0034864]
[1751667970735,6.1034864,147.78,147.74,12.771847]
[1751667970923,6.1034864,147.78,147.74,6.7683606]
[1751667971127,6.1034864,147.78,147.74,12.771847]
[1751667973432,6.0034864,147.76,147.72,1.5968]
[1751667973620,6.0034864,147.75,147.71,6.2034864]
[1751667975036,6.0034864,147.75,147.72,6.76936925]
[1751667975420,5.07351669,147.77,147.72,6.76936925]
[1751667975620,6.0034864,147.76,147.72,12.77285565]
[1751667977646,6.0034864,147.77,147.72,12.77285565]
[1751667977830,6.86696445,147.78,147.72,12.77285565]
[1751667978032,6.0034864,147.77,147.72,12.77285565]
[1751667979830,6.0034864,147.77,147.72,12.77295014]
[1751667980747,6.0034864,147.76,147.72,12.77295014]
[1751667980922,6.0034864,147.77,147.72,12.77295014]
[1751667982251,11.05592692,147.77,147.72,12.77295014]
[1751667982760,5.05244052,147.77,147.73,6.0034864]
[1751667983048,0.1,147.78,147.76,6.0034864]
[1751667983256,0.1,147.78,147.77,6.0034864]
[1751667983824,0.1,147.78,147.77,3.84020467]
[1751667984649,0.1,147.78,147.77,10.60747813]
[1751667985930,0.1,147.78,147.77,6.00039804]
[1751667989855,0.1,147.78,147.74,16.92075608]
[1751667990059,0.1,147.78,147.74,12.76904566]
[1751667990352,0.1,147.78,147.74,6.76864762]
[1751667990543,6.10039804,147.78,147.74,12.76904566]
[1751667990738,6.10039804,147.78,147.74,6.76864762]
[1751667990951,6.10039804,147.78,147.73,12.76933078]
[1751667991741,6.00039804,147.77,147.73,12.76933078]
[1751667991942,6.00039804,147.77,147.73,6.76893274]
[1751667992758,6.00039804,147.76,147.71,6.20039804]
[1751667992961,6.00039804,147.75,147.71,6.20039804]
[1751667993632,5.05059674,147.77,147.71,6.20039804]
[1751667993835,6.00039804,147.76,147.72,12.76978292]
[1751667994032,5.05059674,147.77,147.72,12.76978292]
[1751667994234,6.00039804,147.76,147.72,12.76978292]
[1751667994860,6.00039804,147.76,147.72,6.76938488]
[1751667997740,5.05059674,147.77,147.72,6.76938488]
[1751667997938,6.00039804,147.76,147.72,6.76938488]
[1751667998764,6.00039804,147.76,147.72,12.76978292]
[1751667998962,5.05059674,147.77,147.72,12.76978292]
[1751667999164,6.00039804,147.77,147.72,12.76978292]
[1751667999469,6.00039804,147.76,147.72,12.76978292]
[1751668003068,6.00039804,147.76,147.72,6.76938488]
[1751668003273,6.00039804,147.75,147.71,6.97001704]
[1751668003471,6.00039804,147.75,147.71,0.2]
[1751668003686,11.05099478,147.75,147.71,0.2]
[1751668005705,11.05099478,147.75,147.71,6.20039804]
[1751668006292,11.05099478,147.75,147.71,12.97038675]
[1751668006494,11.08669674,147.76,147.73,6.00039804]
[1751668006697,6.0361,147.76,147.73,6.00039804]
[1751668007306,7.55849804,147.77,147.73,6.00039804]
[1751668007486,12.6219703,147.77,147.73,6.00039804]
[1751668007687,5.06347226,147.77,147.75,12.76836976]
[1751668007875,5.16347226,147.78,147.75,12.76836976]
[1751668008073,0.1,147.78,147.75,12.76836976]
[1751668010200,0.1,147.78,147.73,6.7691058]
[1751668010405,0.1,147.78,147.75,6.00039804]
[1751668012799,0.1,147.78,147.75,12.76851473]
[1751668021906,0.1,147.78,147.76,6.00039804]
[1751668022707,0.1,147.78,147.75,6.00039804]
[1751668023395,0.1,147.78,147.75,12.76841325]
[1751668033192,5.16347226,147.78,147.75,12.76841325]
[1751668033822,5.16347226,147.78,147.75,3.84210364]
[1751668034907,0.1,147.78,147.75,3.84210364]
[1751668035108,5.16347226,147.78,147.75,3.84210364]
[1751668035289,0.1,147.78,147.75,3.84210364]
[1751668035489,5.16347226,147.78,147.75,3.84210364]
[1751668035688,0.1,147.78,147.75,3.84210364]
[1751668035989,5.16347226,147.78,147.75,3.84210364]
[1751668036189,0.1,147.78,147.75,3.84210364]
[1751668036384,5.16347226,147.78,147.75,3.84210364]
[1751668036586,0.1,147.78,147.75,10.61018192]
[1751668037312,5.16776365,147.78,147.75,10.61018192]
[1751668037611,0.1,147.78,147.75,10.61018192]
[1751668037907,5.16776365,147.78,147.75,10.61018192]
[1751668038109,0.1,147.78,147.75,10.61018192]
[1751668038321,5.16776365,147.78,147.75,10.61018192]
[1751668038495,0.1,147.78,147.75,10.61018192]
[1751668038698,5.16776365,147.78,147.75,10.61018192]
[1751668038920,0.1,147.78,147.75,10.61018192]
[1751668039098,5.16776365,147.78,147.75,10.61018192]
[1751668039299,0.1,147.78,147.75,10.61018192]
[1751668039503,5.16776365,147.78,147.75,10.61018192]
[1751668039707,0.1,147.78,147.75,10.61018192]
[1751668039913,5.16776365,147.78,147.75,10.61018192]
[1751668040211,0.1,147.78,147.75,10.61018192]
[1751668040409,5.16776365,147.78,147.75,10.61018192]
[1751668040611,0.1,147.78,147.75,10.61018192]
[1751668040813,5.16776365,147.78,147.75,10.61018192]
[1751668041109,0.1,147.78,147.75,10.61018192]
[1751668041299,5.16776365,147.78,147.75,10.61018192]
[1751668041515,5.16776365,147.78,147.72,26.0]
[1751668041516,0.1,147.78,147.73,6.7691058]
[1751668041699,5.16776365,147.78,147.75,3.84210364]
[1751668041901,0.1,147.78,147.75,3.84210364]
[1751668042218,5.16776365,147.78,147.75,3.84210364]
[1751668042420,0.1,147.78,147.75,3.84210364]
[1751668042595,5.16776365,147.78,147.77,3.84210364]
[1751668042791,0.1,147.78,147.77,3.84210364]
[1751668043913,0.1,147.78,147.77,5.99918304]
[1751668045025,1e-08,147.78,147.77,50.6488319]
[1751668045197,1e-08,147.8,147.79,44.64964886]
[1751668045398,0.1,147.81,147.79,51.32546766]
[1751668045617,0.1,147.81,147.79,26.0]
[1751668045835,0.1,147.81,147.8,5.99918304]
[1751668046007,0.1,147.81,147.8,12.7650829]
[1751668046204,0.1,147.81,147.8,6.76589986]
[1751668046410,0.1,147.81,147.8,12.7650829]
[1751668057651,1e-08,147.81,147.8,31.41473176]
[1751668065792,1e-08,147.81,147.8,29.25258067]
[1751668067669,0.1,147.84,147.83,26.0]
[1751668067992,0.1,147.84,147.83,29.83703195]
[1751668068874,0.1,147.84,147.83,36.60155877]
[1751668069192,0.1,147.84,147.83,32.76452682]
[1751668069375,0.1,147.84,147.83,36.60155877]
[1751668072690,1e-08,147.84,147.83,70.59933543]
[1751668073995,0.1,147.87,147.83,70.59933543]
[1751668074285,0.1,147.87,147.86,3.83703195]
[1751668074678,1.4664926,147.88,147.86,55.92615057]
[1751668074986,1.4664926,147.88,147.87,3.83703195]
[1751668076878,1.4664926,147.88,147.87,10.59972891]
[1751668078793,1.4664926,147.88,147.87,6.76269696]
[1751668078964,1.4664926,147.88,147.87,10.59972891]
[1751668080487,1.4664926,147.88,147.86,32.76303328]
[1751668080692,1.4664926,147.88,147.87,3.83703195]
[1751668081790,1.4664926,147.88,147.87,5.99264139]
[1751668086600,1.4664926,147.88,147.87,12.75533835]
[1751668090296,1.4664926,147.88,147.87,31.40498721]
[1751668090801,0.1,147.9,147.89,44.64964886]
[1751668091102,0.1,147.9,147.89,31.99264139]
[1751668092301,1.4732868,147.9,147.89,38.75442379]
[1751668100411,1.4732868,147.9,147.89,32.7617824]
[1751668100615,1.4732868,147.9,147.89,38.75442379]
[1751668102808,1.4732868,147.9,147.85,6.76361176]
[1751668102995,1.4732868,147.9,147.87,5.99264139]
[1751668103306,7.46592819,147.9,147.86,12.75566282]
[1751668103913,5.30955496,147.9,147.86,10.59928959]
[1751668104798,5.30955496,147.9,147.86,6.76302143]
[1751668104999,5.30955496,147.9,147.86,10.59928959]
[1751668105313,1.4732868,147.9,147.86,10.59928959]
[1751668105812,1.4732868,147.9,147.87,5.99380391]
[1751668106511,1.4732868,147.9,147.87,12.75635546]
[1751668107709,7.46709071,147.9,147.87,6.76255155]
[1751668107890,1.4732868,147.9,147.87,6.76255155]
[1751668108292,1.4732868,147.9,147.87,12.75635546]
[1751668109018,1.4732868,147.9,147.86,32.76315433]
[1751668109221,1.4732868,147.9,147.87,5.99380391]
[1751668110319,1.4732868,147.9,147.87,6.76255617]
[1751668110615,1.4732868,147.9,147.87,12.75636008]
[1751668111516,1.4732868,147.9,147.87,6.76255617]
[1751668111725,1.4732868,147.9,147.86,32.76304348]
[1751668111726,7.46709071,147.9,147.86,32.76304348]
[1751668111899,5.99380391,147.89,147.85,5.99380391]
[1751668112909,5.99380391,147.88,147.84,6.76406926]
[1751668115026,5.99380391,147.87,147.84,6.76406926]
[1751668116523,5.99380391,147.87,147.83,6.76452682]
[1751668116727,5.99380391,147.87,147.83,12.75833073]
[1751668116900,11.05292018,147.88,147.83,12.75833073]
[1751668118221,5.99380391,147.88,147.83,12.75833073]
[1751668118921,5.99380391,147.88,147.83,6.76452682]
[1751668119123,5.99380391,147.88,147.83,12.75833073]
[1751668120522,7.8102,147.89,147.83,12.75833073]
[1751668120722,5.99380391,147.88,147.84,5.99380391]
[1751668121223,5.99380391,147.88,147.84,12.75773107]
[1751668121725,11.04967124,147.88,147.84,12.75773107]
[1751668122413,12.42295804,147.88,147.84,12.75773107]
[1751668123526,12.42295804,147.88,147.83,6.76452682]
[1751668123719,12.42295804,147.88,147.84,5.99380391]
[1751668123926,12.42295804,147.88,147.83,6.76452682]
[1751668124123,7.36709071,147.88,147.84,5.99380391]
[1751668125028,7.36709071,147.88,147.83,6.76452682]
[1751668125227,7.36709071,147.88,147.84,5.99380391]
[1751668125807,5.21077766,147.88,147.84,3.83749086]
[1751668126426,5.21077766,147.88,147.83,10.60201768]
[1751668126634,3.83749086,147.87,147.83,10.60201768]
[1751668128818,1.3732868,147.88,147.83,10.60201768]
[1751668129032,5.21077766,147.88,147.83,10.60201768]
[1751668132336,3.83749086,147.87,147.83,10.60201768]
[1751668136639,3.83749086,147.87,147.83,6.76452682]
[1751668137140,3.83749086,147.87,147.83,10.60201768]
[1751668140646,3.83749086,147.87,147.83,6.76452682]
[1751668140821,6.42779139,147.88,147.83,6.76452682]
[1751668140822,3.83749086,147.86,147.83,6.76452682]
[1751668141344,6.42779139,147.88,147.83,6.76452682]
[1751668141545,3.83749086,147.86,147.83,6.76452682]
[1751668142026,6.42779139,147.88,147.86,26.0]
[1751668142232,1.3732868,147.88,147.87,3.83749086]
[1751668142632,1.3732868,147.88,147.87,10.60018782]
[1751668143033,1.3732868,147.88,147.83,16.91131705]
[1751668143233,1.3732868,147.88,147.83,42.91131705]
[1751668143553,1.3732868,147.88,147.84,3.83749086]
[1751668144131,1.3732868,147.88,147.84,10.60156012]
[1751668145838,1.3732868,147.88,147.84,12.75974073]
[1751668147235,6.43903972,147.88,147.84,12.75974073]
[1751668147637,1.3732868,147.88,147.84,12.75974073]
[1751668147832,6.43903972,147.88,147.84,12.75974073]
[1751668148942,1.3732868,147.88,147.84,12.75974073]
[1751668149140,6.43903972,147.88,147.84,12.75974073]
[1751668150130,1.3732868,147.88,147.84,12.75974073]
[1751668152142,6.44195488,147.88,147.84,12.75974073]
[1751668152838,1.3732868,147.88,147.87,5.99567147]
[1751668153945,1.3732868,147.88,147.87,12.75836843]
[1751668156841,1.3732868,147.88,147.87,6.76269696]
[1751668157867,1.3732868,147.88,147.83,26.0]
[1751668158063,1.3732868,147.88,147.86,5.99567147]
[1751668158364,1.3732868,147.88,147.86,6.76283753]
[1751668160746,1.3732868,147.88,147.84,6.76406926]
[1751668160948,1.3732868,147.88,147.84,12.75974073]
[1751668162657,1.3732868,147.88,147.84,6.76406926]
[1751668162853,1.3732868,147.88,147.84,12.75974073]
[1751668163247,1.3732868,147.88,147.84,6.76406926]
[1751668163561,1.3732868,147.88,147.84,12.75974073]
[1751668164064,1.3732868,147.88,147.85,12.75886612]
[1751668169169,1.3732868,147.88,147.87,5.99567147]
[1751668169742,1.3732868,147.88,147.87,3.83569969]
[1751668170161,1.3732868,147.88,147.87,10.59839665]
[1751668171771,1.3732868,147.88,147.87,5.99318742]
[1751668173149,1.3732868,147.88,147.87,12.75588438]
[1751668190480,7.7045868,147.93,147.89,26.0]
[1751668190671,7.7045868,147.93,147.9,5.99318742]
[1751668190880,7.7045868,147.93,147.91,5.99318742]
[1751668193785,7.7045868,147.93,147.91,3.83367257]
[1751668195286,7.7045868,147.93,147.92,6.76041103]
[1751668196278,7.7045868,147.93,147.91,3.83367257]